fUSD/lending_fUSD_20250202
["ID","MTS","AMOUNT","RATE_DAILY","PERIOD"]
[351265434,1738501832658,-1100.0,0.000117,4]
[351265435,1738501832667,-167.06155872,0.000118,2]
[351265436,1738501832677,-1500.0,0.000118,4]
[351265437,1738501832687,-4075.57746512,0.000118,2]
[351265438,1738501832697,-159.96,0.00011802,2]
[351265439,1738501832707,-500.0,0.00011873,2]
[351265440,1738501832717,-500.0,0.00011873,2]
[351265441,1738501832727,-500.0,0.0001188,2]
[351265442,1738501832737,-500.0,0.0001188,2]
[351265443,1738501832747,-500.0,0.0001188,2]
[351265444,1738501832757,-178.16255008,0.0001189,2]
[351265445,1738501832767,-500.0,0.0001189,2]
[351265446,1738501832776,-155.622,0.00011899,2]
[351265447,1738501832787,-2354.304,0.00011899,2]
[351265448,1738501832797,-425.85996353,0.000119,2]
[351265449,1738501832807,-95690.86827873,0.000119,2]
[351265450,1738501832925,-9831.0212,0.000119,2]
[351265451,1738501832937,-4927.4,0.000119,2]
[351265452,1738501832949,-1369.98573992,0.000119,2]
[351265453,1738501832996,-74805.68316617,0.000119,2]
[351265454,1738501833008,-7397.31683383,0.000119,2]
[351265455,1738501833029,-5265.50416325,0.000119,2]
[351265456,1738501833146,-621.00000525,0.000119,2]
[351265464,1738501837489,-400.36661351,0.000118,2]
[351265465,1738501837499,-205.35368935,0.000119,2]
[351265466,1738501837510,-9976.45370199,0.000119,2]
[351265467,1738501837523,-997.10688093,0.000119,2]
[351265468,1738501837543,-326.11,0.000119,2]
[351265469,1738501837555,-13453.16977798,0.000119,2]
[351265470,1738501837566,-11059.47368,0.000119,2]
[351265471,1738501837578,-493.081305,0.000119,2]
[351265472,1738501837613,-4028.79750304,0.000119,2]
[351265473,1738501837625,-77047.0632,0.000119,2]
[351265474,1738501837690,-255.45961848,0.000119,2]
[351265475,1738501837703,-1194.53694973,0.000119,2]
[351265481,1738501837715,-3355.26579576,0.000119,2]
[351265484,1738501837934,-266147.6470363,0.000119,2]
[351265486,1738501837946,-1110.04954345,0.000119,2]
[351265488,1738501837957,-1796.71465125,0.000119,2]
[351265490,1738501837967,-13740.23939,0.000119,2]
[351265494,1738501837992,-98370.70859046,0.000119,2]
[351265497,1738501838000,-6265.63227047,0.000119,2]
[351265511,1738501839646,-300.9964335,0.000118,2]
[351265512,1738501839656,-2884.0035665,0.000119,2]
[351265513,1738501839704,-395.002608,0.000119,2]
[351265514,1738501839765,-20000.0,0.000119,2]
[351265515,1738501839777,-209440.00000006,0.000119,2]
[351265523,1738501840389,-107379.76804175,0.000119,2]
[351265524,1738501840399,-12753.9999,0.000119,2]
[351265525,1738501840410,-169.33822009,0.000119,2]
[351265526,1738501840421,-74944.48452616,0.000119,2]
[351265527,1738501840447,-763.68533088,0.000119,2]
[351265528,1738501840474,-659.9999998,0.000119,2]
[351265529,1738501840498,-2447.74500001,0.000119,2]
[351265530,1738501840509,-980.29740542,0.000119,2]
[351265531,1738501840520,-2736.39119504,0.000119,2]
[351265532,1738501840542,-1120.86205311,0.000119,2]
[351265533,1738501840553,-2121.56477627,0.000119,2]
[351265534,1738501840574,-665.26245623,0.000119,2]
[351265535,1738501840585,-835.68851116,0.000119,2]
[351265540,1738501842581,-464.700008,0.000119,2]
[351265541,1738501842639,-5117.85117103,0.000119,2]
[351265542,1738501842650,-1470.8855,0.000119,2]
[351265543,1738501842662,-14372.74776098,0.000119,2]
[351265544,1738501842696,-3771.173325,0.000119,2]
[351265545,1738501842708,-49166.49999999,0.000119,2]
[351265546,1738501842720,-73901.97801753,0.000119,2]
[351265547,1738501842733,-17476.08560783,0.000119,2]
[351265548,1738501842810,-2844.78400016,0.000119,2]
[351265549,1738501842822,-38040.42872333,0.000119,2]
[351265550,1738501842866,-880.0000004,0.000119,2]
[351265563,1738501845550,-69586.21367065,0.000119,2]
[351265564,1738501845562,-11725.82420987,0.000119,2]
[351265565,1738501845575,-3120.0000015,0.000119,2]
[351265566,1738501845676,-647.78682822,0.000119,2]
[351265567,1738501845688,-437.78292858,0.000119,2]
[351265568,1738501845699,-1371.232485,0.000119,2]
[351265569,1738501845711,-11740.3119354,0.000119,2]
[351265570,1738501845722,-49175.38523528,0.000119,2]
[351265571,1738501845733,-259.02128164,0.000119,2]
[351265572,1738501845745,-271.6336695,0.000119,2]
[351265573,1738501845756,-13360.07958673,0.000119,2]
[351265574,1738501845768,-1374.999995,0.000119,2]
[351265575,1738501845779,-531.41457158,0.000119,2]
[351265576,1738501845796,-4980.24889165,0.000119,2]
[351265577,1738501845807,-685.99999662,0.000119,2]
[351265578,1738501845824,-6197.76902,0.000119,2]
[351265579,1738501845883,-591.28643882,0.000119,2]
[351265585,1738501991977,500.0,0.00022063,120]
[351265586,1738502007110,224.563292,0.00022063,120]
[351265594,1738502118830,208.79,0.00016658,30]
[351265598,1738502379699,1178.38,8.751e-05,2]
[351265599,1738502592529,634.122737,0.00022999,120]
[351265600,1738502714849,1066.58,9.878e-05,2]
[351265601,1738502741827,267.55,9.871e-05,2]
[351265604,1738502815637,-298.91303821,0.00010137,2]
[351265605,1738502836880,10282.98179769,0.00023,120]
[351265606,1738502878957,517.47752,0.00023,120]
[351265607,1738502909710,-800.0,0.0001,2]
[351265608,1738502912126,-800.0,0.0001,2]
[351265609,1738502912657,-800.0,0.0001,2]
[351265610,1738502913371,-800.0,0.0001,2]
[351265611,1738502914109,-800.0,0.0001,2]
[351265612,1738502914872,-800.0,0.0001,2]
[351265613,1738502915122,-800.0,0.0001,2]
[351265614,1738502915586,-800.0,0.0001,2]
[351265615,1738502916123,-800.0,0.0001,2]
[351265616,1738502916783,-800.0,0.0001,2]
[351265617,1738502917384,-800.0,0.0001,2]
[351265618,1738502917804,-800.0,0.0001,2]
[351265619,1738502918245,-800.0,0.0001,2]
[351265620,1738502918712,-800.0,0.0001,2]
[351265621,1738502919110,-800.0,0.0001,2]
[351265622,1738502919891,-800.0,0.0001,2]
[351265623,1738502920124,-800.0,0.0001,2]
[351265624,1738502920553,-800.0,0.0001,2]
[351265625,1738502921166,-800.0,0.0001,2]
[351265630,1738502935249,-600.0,0.0001,2]
[351265633,1738502945916,198.35,0.00016658,30]
[351265634,1738502985878,466.31,9.699e-05,2]
[351265635,1738503010421,1532.4,9.67e-05,2]
[351265664,1738503031731,-158.045666,9.95e-05,2]
[351265665,1738503031740,-300.0,9.999e-05,2]
[351265666,1738503031750,-150.0,9.999e-05,2]
[351265667,1738503031759,-4636.34333529,0.0001,2]
[351265668,1738503031771,-10375.365,0.0001,2]
[351265669,1738503031783,-1395.09553501,0.0001,2]
[351265670,1738503031831,-2257.03968916,0.0001,2]
[351265671,1738503031891,-2011.94000034,0.0001,2]
[351265672,1738503031904,-540.0,0.0001,2]
[351265673,1738503031915,-535.47,0.0001,2]
[351265674,1738503031926,-2238.46326008,0.0001,2]
[351265675,1738503031944,-41023.5228206,0.0001,2]
[351265676,1738503031955,-3071.48316617,0.0001,2]
[351265677,1738503031967,-1097.72946846,0.0001,2]
[351265678,1738503032006,-1710.11950921,0.0001,2]
[351265679,1738503032018,-3861.16061818,0.0001,2]
[351265680,1738503032075,-295.49189213,0.0001,2]
[351265681,1738503032087,-5226.49427502,0.0001,2]
[351265682,1738503032098,-550.0,0.0001,2]
[351265683,1738503032109,-654.8849657,0.0001,2]
[351265687,1738503037614,-500.56864669,0.0001,2]
[351265688,1738503037625,-905.8310878,0.0001,2]
[351265689,1738503037693,-36697.03263822,0.0001,2]
[351265690,1738503037703,-149664.52530189,0.0001,2]
[351265691,1738503037712,-267.35696179,0.00010137,2]
[351265692,1738503037720,-1942.47,0.00010267,2]
[351265693,1738503037730,-2383.92,0.00010284,2]
[351265694,1738503037738,-2383.92,0.00010286,2]
[351265695,1738503037747,-1653.09,0.00010287,2]
[351265696,1738503037755,-2383.92,0.00010289,2]
[351265697,1738503037764,-2383.92,0.00010292,2]
[351265698,1738503037772,-2383.92,0.00010295,2]
[351265699,1738503037781,-2383.92,0.00010297,2]
[351265700,1738503037791,-2383.92,0.000103,2]
[351265701,1738503037800,-2383.92,0.00010303,2]
[351265702,1738503037808,-2383.92,0.00010305,2]
[351265703,1738503037817,-2383.92,0.00010308,2]
[351265704,1738503037827,-200.0,0.0001031,2]
[351265705,1738503037837,-2383.92,0.00010311,2]
[351265706,1738503037846,-2383.92,0.00010314,2]
[351265707,1738503037856,-2383.92,0.00010316,2]
[351265708,1738503037867,-2383.92,0.00010319,2]
[351265709,1738503037877,-2383.92,0.00010322,2]
[351265710,1738503037886,-2383.92,0.00010324,2]
[351265711,1738503037896,-2383.92,0.00010327,2]
[351265712,1738503037907,-2383.92,0.0001033,2]
[351265713,1738503037917,-2383.92,0.00010332,2]
[351265714,1738503037926,-2383.92,0.00010335,2]
[351265715,1738503037938,-804.52,0.000104,2]
[351265716,1738503037947,-250.0,0.00010442,2]
[351265718,1738503037959,-736.08,0.0001054,2]
[351265720,1738503037969,-1852.42,0.00010665,2]
[351265722,1738503037978,-1000.0,0.00010669,2]
[351265724,1738503037988,-2029.0203,0.00010742,2]
[351265726,1738503037998,-3342.9371,0.00010742,2]
[351265728,1738503038007,-1396.0231,0.00010742,2]
[351265730,1738503038016,-23900.0,0.00010768,2]
[351265732,1738503038025,-4793.55,0.00010836,2]
[351265734,1738503038035,-1905.74,0.00010842,2]
[351265736,1738503038044,-3155.54,0.00010903,2]
[351265738,1738503038054,-162.73,0.00010956,2]
[351265740,1738503038063,-3950.2,0.00010958,2]
[351265742,1738503038072,-2708.97,0.00010958,2]
[351265744,1738503038081,-2411.02,0.00010958,2]
[351265746,1738503038091,-5399.47,0.00010958,2]
[351265748,1738503038101,-500.37,0.00010958,2]
[351265750,1738503038110,-6423.26,0.00010958,2]
[351265752,1738503038120,-2187.67,0.00010958,2]
[351265754,1738503038129,-4979.03,0.00010958,2]
[351265756,1738503038138,-8512.75,0.00010958,2]
[351265758,1738503038148,-500.0,0.00010958,2]
[351265760,1738503038159,-551.1945598,0.00010958,2]
[351265763,1738503038169,-500.0,0.00010958,2]
[351265768,1738503038179,-500.0,0.00010958,2]
[351265771,1738503038188,-1108.63,0.00010958,2]
[351265772,1738503038198,-577.17,0.00010958,2]
[351265774,1738503038208,-500.0,0.00010958,2]
[351265776,1738503038218,-500.0,0.00010958,2]
[351265777,1738503038228,-2927.67,0.00010958,2]
[351265779,1738503038237,-500.0,0.00010958,2]
[351265781,1738503038247,-500.0,0.00010958,2]
[351265782,1738503038256,-3856.59,0.00010958,2]
[351265783,1738503038266,-500.0,0.00010958,2]
[351265784,1738503038275,-500.0,0.00010958,2]
[351265785,1738503038284,-500.0,0.00010958,2]
[351265786,1738503038293,-500.0,0.00010958,2]
[351265788,1738503038302,-465.00981262,0.00010958,2]
[351265790,1738503038312,-150.0,0.00010959,2]
[351265791,1738503038321,-420.0,0.00010999,2]
[351265792,1738503038331,-255.0,0.00010999,2]
[351265793,1738503038340,-150.0,0.00011,2]
[351265794,1738503038350,-1178.38,0.00011015,2]
[351265795,1738503038360,-5026.31286388,0.00011021,2]
[351265796,1738503038372,-3977.53713612,0.00011021,2]
[351265797,1738503038382,-167.57,0.00011091,2]
[351265798,1738503038391,-596.39,0.00011091,2]
[351265799,1738503038401,-258.50286388,0.00011092,2]
[351265800,1738503038433,-621.7204997,0.00011092,2]
[351265801,1738503038445,-1119.77663642,0.00011092,2]
[351265802,1738503038455,-3950.2,0.00011095,2]
[351265803,1738503038465,-2708.97,0.00011095,2]
[351265804,1738503038475,-2411.02,0.00011095,2]
[351265805,1738503038485,-4298.91441442,0.00011095,2]
[351265806,1738503038496,-998.33356086,0.00011095,2]
[351265807,1738503038533,-102.22202472,0.00011095,2]
[351265808,1738503038543,-500.37,0.00011095,2]
[351265809,1738503038552,-6423.26,0.00011095,2]
[351265810,1738503038562,-2187.67,0.00011095,2]
[351265811,1738503038572,-4979.03,0.00011095,2]
[351265812,1738503038581,-8512.75,0.00011095,2]
[351265813,1738503038591,-500.0,0.00011095,2]
[351265814,1738503038600,-500.0,0.00011095,2]
[351265815,1738503038610,-500.0,0.00011095,2]
[351265816,1738503038620,-1108.63,0.00011095,2]
[351265817,1738503038630,-577.17,0.00011095,2]
[351265818,1738503038639,-500.0,0.00011095,2]
[351265819,1738503038649,-500.0,0.00011095,2]
[351265820,1738503038661,-2927.67,0.00011095,2]
[351265821,1738503038671,-500.0,0.00011095,2]
[351265822,1738503038680,-500.0,0.00011095,2]
[351265823,1738503038690,-3856.59,0.00011095,2]
[351265824,1738503038701,-500.0,0.00011095,2]
[351265825,1738503038711,-500.0,0.00011095,2]
[351265826,1738503038727,-500.0,0.00011095,2]
[351265827,1738503038736,-500.0,0.00011095,2]
[351265828,1738503038746,-1066.58,0.00011112,2]
[351265829,1738503038756,-150.0,0.00011151,2]
[351265830,1738503038765,-150.0,0.00011151,2]
[351265831,1738503038775,-177.07,0.00011157,2]
[351265832,1738503038967,-2094.0,0.00011184,2]
[351265833,1738503038982,-175.21,0.0001123,2]
[351265834,1738503038992,-3950.2,0.00011232,2]
[351265835,1738503039002,-2708.97,0.00011232,2]
[351265836,1738503039011,-2411.02,0.00011232,2]
[351265837,1738503039020,-5399.47,0.00011232,2]
[351265838,1738503039030,-500.37,0.00011232,2]
[351265839,1738503039039,-6423.26,0.00011232,2]
[351265840,1738503039049,-2187.67,0.00011232,2]
[351265841,1738503039059,-4979.03,0.00011232,2]
[351265842,1738503039068,-8512.75,0.00011232,2]
[351265843,1738503039079,-400.34086706,0.00011232,2]
[351265844,1738503039088,-500.0,0.00011232,2]
[351265845,1738503039098,-500.0,0.00011232,2]
[351265846,1738503039107,-1108.63,0.00011232,2]
[351265847,1738503039117,-500.0,0.00011232,2]
[351265848,1738503039126,-500.0,0.00011232,2]
[351265849,1738503039135,-577.17,0.00011232,2]
[351265850,1738503039145,-2927.67,0.00011232,2]
[351265851,1738503039154,-500.0,0.00011232,2]
[351265852,1738503039169,-500.0,0.00011232,2]
[351265853,1738503039179,-3856.59,0.00011232,2]
[351265854,1738503039189,-500.0,0.00011232,2]
[351265855,1738503039198,-500.0,0.00011232,2]
[351265856,1738503039207,-500.0,0.00011232,2]
[351265857,1738503039217,-500.0,0.00011232,2]
[351265858,1738503039227,-298.51,0.00011278,2]
[351265859,1738503039236,-4382.46,0.00011281,2]
[351265860,1738503039246,-932.12,0.00011281,2]
[351265861,1738503039255,-2085.23,0.00011281,2]
[351265862,1738503039265,-9999.99,0.00011281,2]
[351265863,1738503039275,-299.99,0.00011281,2]
[351265864,1738503039284,-150.99,0.00011281,2]
[351265865,1738503039293,-9999.99,0.00011281,2]
[351265866,1738503039302,-499.99,0.00011281,2]
[351265867,1738503039311,-999.99,0.00011281,2]
[351265868,1738503039320,-150.99,0.00011281,2]
[351265869,1738503039331,-9999.99,0.00011281,2]
[351265870,1738503039341,-3950.2,0.00011369,2]
[351265871,1738503039351,-2708.97,0.00011369,2]
[351265872,1738503039361,-2411.02,0.00011369,2]
[351265873,1738503039371,-5399.47,0.00011369,2]
[351265874,1738503039380,-500.37,0.00011369,2]
[351265875,1738503039390,-6423.26,0.00011369,2]
[351265876,1738503039399,-2187.67,0.00011369,2]
[351265877,1738503039411,-4979.03,0.00011369,2]
[351265878,1738503039420,-5192.05786629,0.00011369,2]
[351265879,1738503039433,-690.12221532,0.00011369,2]
[351265881,1738503039444,-2254.88152453,0.00011369,2]
[351265890,1738503040224,-375.68839386,0.00011369,2]
[351265892,1738503040233,-62.99222071,0.00011369,2]
[351265893,1738503040255,-437.00777929,0.00011369,2]
[351265894,1738503040264,-500.0,0.00011369,2]
[351265895,1738503040273,-5.45745874,0.00011369,2]
[351265896,1738503040284,-986.37488508,0.00011369,2]
[351265897,1738503040309,-116.79765618,0.00011369,2]
[351265898,1738503040317,-500.0,0.00011369,2]
[351265899,1738503040326,-577.17,0.00011369,2]
[351265900,1738503040334,-500.0,0.00011369,2]
[351265901,1738503040342,-2927.67,0.00011369,2]
[351265902,1738503040351,-500.0,0.00011369,2]
[351265903,1738503040360,-500.0,0.00011369,2]
[351265904,1738503040368,-924.84438206,0.00011369,2]
[351265905,1738503040391,-493.877405,0.00011369,2]
[351265921,1738503042681,-1859.1,0.00010958,2]
[351265922,1738503042692,-500.0,0.00010958,2]
[351265923,1738503042702,-1859.1,0.00011095,2]
[351265924,1738503042713,-500.0,0.00011095,2]
[351265926,1738503042727,-1859.1,0.00011232,2]
[351265928,1738503042737,-2437.86821294,0.00011369,2]
[351265930,1738503042747,-500.0,0.00011369,2]
[351265932,1738503042757,-500.0,0.00011369,2]
[351265934,1738503042768,-500.0,0.00011369,2]
[351265936,1738503042778,-171.90035543,0.00011369,2]
[351265939,1738503042817,-500.0,0.00011232,2]
[351265940,1738503042827,-328.09964457,0.00011369,2]
[351265941,1738503042837,-1859.1,0.00011369,2]
[351265942,1738503042850,-3950.2,0.00011506,2]
[351265943,1738503042860,-2708.97,0.00011506,2]
[351265944,1738503042870,-2411.02,0.00011506,2]
[351265945,1738503042882,-5399.47,0.00011506,2]
[351265946,1738503042893,-500.37,0.00011506,2]
[351265947,1738503042903,-6423.26,0.00011506,2]
[351265948,1738503042915,-2187.67,0.00011506,2]
[351265949,1738503042925,-1062.04332092,0.00011506,2]
[351265950,1738503042947,-1036.4,0.00011506,2]
[351265951,1738503043043,-1086.36352205,0.00011506,2]
[351265952,1738503043055,-1727.22468307,0.00011506,2]
[351265953,1738503043195,-33.21255977,0.00011369,2]
[351265959,1738503045723,-923.59,0.00010958,2]
[351265960,1738503045733,-500.0,0.00010958,2]
[351265961,1738503045742,-500.0,0.00010958,2]
[351265962,1738503045751,-7989.34455896,0.00010958,2]
[351265963,1738503045815,-4650.86544104,0.00010958,2]
[351265964,1738503045824,-923.59,0.00011095,2]
[351265965,1738503045835,-500.0,0.00011095,2]
[351265966,1738503045844,-500.0,0.00011095,2]
[351265967,1738503045853,-923.59,0.00011232,2]
[351265968,1738503045863,-500.0,0.00011232,2]
[351265969,1738503045872,-500.0,0.00011232,2]
[351265970,1738503045882,-466.78744023,0.00011369,2]
[351265971,1738503045892,-889.66711873,0.00011369,2]
[351265972,1738503046001,-318.13999994,0.00011095,2]
[351265980,1738503046275,-2301.29619502,0.00011095,2]
[351265981,1738503046286,-10020.77380504,0.00011095,2]
[351265982,1738503046295,-33.92288127,0.00011369,2]
[351265983,1738503046304,-500.0,0.00011369,2]
[351265984,1738503046313,-500.0,0.00011369,2]
[351265985,1738503046322,-66.99847396,0.00011506,2]
[351265986,1738503046332,-8512.75,0.00011506,2]
[351265987,1738503046341,-500.0,0.00011506,2]
[351265988,1738503046351,-500.0,0.00011506,2]
[351265989,1738503046360,-1108.63,0.00011506,2]
[351265990,1738503046369,-577.17,0.00011506,2]
[351265991,1738503046379,-500.0,0.00011506,2]
[351265992,1738503046387,-500.0,0.00011506,2]
[351265993,1738503046397,-2927.67,0.00011506,2]
[351265994,1738503046406,-500.0,0.00011506,2]
[351265995,1738503046417,-500.0,0.00011506,2]
[351265996,1738503046426,-3856.59,0.00011506,2]
[351265997,1738503046435,-500.0,0.00011506,2]
[351265998,1738503046445,-500.0,0.00011506,2]
[351265999,1738503046454,-500.0,0.00011506,2]
[351266000,1738503046463,-500.0,0.00011506,2]
[351266001,1738503046472,-1859.1,0.00011506,2]
[351266002,1738503046481,-500.0,0.00011506,2]
[351266003,1738503046490,-923.59,0.00011506,2]
[351266004,1738503046500,-500.0,0.00011506,2]
[351266005,1738503046510,-500.0,0.00011506,2]
[351266006,1738503046519,-500.0,0.00011534,2]
[351266007,1738503046528,-2009.2339,0.000116,2]
[351266008,1738503046538,-733.2751,0.000116,2]
[351266009,1738503046547,-3950.2,0.00011643,2]
[351266010,1738503046556,-2708.97,0.00011643,2]
[351266011,1738503046566,-2411.02,0.00011643,2]
[351266012,1738503046575,-5399.47,0.00011643,2]
[351266013,1738503046585,-500.37,0.00011643,2]
[351266014,1738503046594,-6423.26,0.00011643,2]
[351266015,1738503046603,-2187.67,0.00011643,2]
[351266016,1738503046612,-4979.03,0.00011643,2]
[351266017,1738503046622,-218.77705517,0.00011643,2]
[351266021,1738503204429,800.0,8.759e-05,2]
[351266022,1738503204453,290.23,8.759e-05,2]
[351266025,1738503409379,201.25444365,9.861e-05,2]
[351266026,1738503418527,500.0,0.00011899,7]
[351266027,1738503418926,500.0,0.00012036,7]
[351266028,1738503419812,500.0,0.00012173,7]
[351266029,1738503420094,500.0,0.0001231,7]
[351266030,1738503420268,500.0,0.00012447,7]
[351266031,1738503420460,500.0,0.00012584,7]
[351266032,1738503420547,500.0,0.00012721,7]
[351266033,1738503420634,500.0,0.00012858,7]
[351266034,1738503420738,500.0,0.00012995,7]
[351266035,1738503485780,-500.0,0.0001,2]
[351266040,1738503805867,167.57,9.836e-05,2]
[351266041,1738503809584,-159.96,0.00010007,2]
[351266042,1738503809607,-272.61894942,0.00010031,2]
[351266043,1738503809629,-367.42105058,0.00010037,2]
[351266044,1738503812506,-800.0,0.00010037,2]
[351266045,1738503832355,-92.52128356,0.00010037,2]
[351266046,1738503832378,-707.47871644,0.00010097,2]
[351266047,1738503833355,-292.52128356,0.00010097,2]
[351266048,1738503847738,188.43,0.00016658,30]
[351266052,1738504100045,23091.27,0.00011672,7]
[351266053,1738504108961,933.37,0.00011672,7]
[351266054,1738504111108,507.47871644,9.852e-05,2]
[351266055,1738504111136,800.0,9.852e-05,2]
[351266056,1738504111160,800.0,9.852e-05,2]
[351266057,1738504111185,800.0,9.852e-05,2]
[351266058,1738504111215,800.0,9.852e-05,2]
[351266059,1738504111237,800.0,9.852e-05,2]
[351266060,1738504111260,800.0,9.852e-05,2]
[351266061,1738504111283,800.0,9.852e-05,2]
[351266062,1738504111305,800.0,9.852e-05,2]
[351266063,1738504111327,800.0,9.852e-05,2]
[351266064,1738504111348,800.0,9.852e-05,2]
[351266065,1738504111376,15332.43,9.852e-05,2]
[351266066,1738504111404,60.09128356,9.852e-05,2]
[351266068,1738504124203,68447.18,0.00011672,7]
[351266069,1738504127100,1103.43,8.219e-05,2]
[351266070,1738504143387,1248.79,0.00011672,7]
[351266072,1738504159367,35126.08,0.00011672,7]
[351266074,1738504168375,11559.8,0.00011664,7]
[351266075,1738504185391,27204.88,0.00011664,7]
[351266090,1738504231983,-826.54,0.00010131,2]
[351266091,1738504231993,-156.77,0.00010137,2]
[351266092,1738504232002,-168.26,0.00010137,2]
[351266093,1738504232011,-181.74596628,0.00010182,2]
[351266094,1738504232021,-174.5,0.00010193,2]
[351266095,1738504232030,-170.01,0.00010231,2]
[351266096,1738504232040,-170.01,0.00010248,2]
[351266097,1738504232050,-170.01,0.00010265,2]
[351266098,1738504232059,-170.01,0.00010282,2]
[351266099,1738504232068,-150.0,0.00010329,2]
[351266100,1738504232078,-250.0,0.00010381,2]
[351266101,1738504232088,-1527.48,0.00010381,2]
[351266102,1738504232098,-299.99,0.00010381,2]
[351266103,1738504232107,-150.99,0.00010381,2]
[351266104,1738504232117,-9999.99,0.00010381,2]
[351266105,1738504232126,-181.74596626,0.0001042,2]
[351266106,1738504232136,-1103.43,0.00010468,2]
[351266107,1738504232146,-600.0,0.000106,3]
[351266108,1738504232157,-150.99,0.000106,2]
[351266109,1738504232167,-181.74596626,0.00010658,2]
[351266110,1738504232176,-1300.0,0.000107,3]
[351266111,1738504232185,-757.07137361,0.00010757,2]
[351266112,1738504232195,-150.0,0.00010757,2]
[351266113,1738504232205,-1138.93389359,0.00010758,2]
[351266114,1738504232217,-5874.95100641,0.00010758,2]
[351266115,1738504232226,-1566.0333,0.00010758,2]
[351266116,1738504232236,-2043.0063,0.00010758,2]
[351266117,1738504232246,-2000.0,0.000108,3]
[351266118,1738504232255,-19851.2475,0.00010858,2]
[351266119,1738504232265,-500.0,0.00010858,2]
[351266120,1738504232275,-2511.0111,0.00010858,2]
[351266121,1738504232285,-266.4177,0.00010858,2]
[351266122,1738504232294,-8265.9771,0.00010858,2]
[351266123,1738504232303,-2500.0,0.00010858,2]
[351266124,1738504232312,-3879.5507,0.00010858,2]
[351266125,1738504232321,-19625.2545,0.00010858,2]
[351266126,1738504232330,-312.4767,0.00010858,2]
[351266127,1738504232340,-1669.1582,0.00010858,2]
[351266129,1738504232349,-1000.0,0.00010858,2]
[351266131,1738504232358,-2700.0,0.000109,3]
[351266133,1738504232367,-599.39,0.00010958,2]
[351266135,1738504232376,-500.0,0.00010958,2]
[351266137,1738504232385,-1275.83,0.00010958,2]
[351266139,1738504232395,-500.0,0.00010958,2]
[351266141,1738504232408,-500.0,0.00010958,2]
[351266143,1738504232417,-500.0,0.00010958,2]
[351266146,1738504232426,-505.87387453,0.00010958,2]
[351266148,1738504232435,-243.64355585,0.00010958,2]
[351266149,1738504232445,-569.36,0.00010958,2]
[351266151,1738504232455,-500.0,0.00010958,2]
[351266154,1738504232464,-500.0,0.00010958,2]
[351266155,1738504232474,-500.0,0.00010958,2]
[351266158,1738504232484,-562.74,0.00010958,2]
[351266162,1738504232493,-500.0,0.00010958,2]
[351266164,1738504232503,-659.01,0.00010958,2]
[351266166,1738504232513,-500.0,0.00010958,2]
[351266168,1738504232523,-500.0,0.00010958,2]
[351266170,1738504232532,-500.0,0.00010958,2]
[351266172,1738504232542,-500.0,0.00010958,2]
[351266174,1738504232552,-500.0,0.00010958,2]
[351266176,1738504232561,-500.0,0.00010958,2]
[351266178,1738504232571,-504.56462386,0.00010958,2]
[351266180,1738504232580,-500.0,0.00010958,2]
[351266182,1738504232590,-500.0,0.00010958,2]
[351266184,1738504232599,-500.0,0.00010958,2]
[351266186,1738504232608,-500.0,0.00010958,2]